{"text_format":"3","workbook":"xlsx","n_sheets":4,"sheets":["Pradžia","Išlaidos","Pajamos","Pelno ir nuostolių suvestinė"],"not_rendered":{"charts":1},"read":"whole","date_system":"1900"}

{"sheet":"Pradžia","index":0,"n_rows":8,"n_cols":2,"rows_kept":8}
[null,"APIE ŠĮ ŠABLONĄ"]
[null,"Naudokite šią renginio biudžeto darbaknygę norėdami sekti patirtas išlaidas ir gautas pajamas."]
[null,"Įveskite įvykio pavadinimą ir įveskite duomenis išlaidų darbalapio ir pajamų darbalapio lentelėse."]
[null,"Automatiškai apskaičiuojamos bendrosios išlaidos ir bendrosios pajamos."]
[null,"Pelno-išlaidų suvestinės darbaknygėje automatiškai atnaujinamas pelnas ir išlaidos."]
[null,"Pastaba. "]
[null,"Papildomos instrukcijos pateikiamos kiekvieno darbalapio A stulpelyje. Šis tekstas buvo specialiai paslėptas. Norėdami pašalinti tekstą, pasirinkite A stulpelį, tada pasirinkite Naikinti. "]
[null,"Norėdami sužinoti daugiau apie lenteles, lentelėje paspauskite SHIFT, tada – F10, pasirinkite parinktį LENTELĖ, tada pasirinkite ALTERNATYVUSIS TEKSTAS"]

{"sheet":"Išlaidos","index":1,"n_rows":32,"n_cols":8,"rows_kept":32,"merged":[[0,1,0,2],[0,3,0,4],[2,1,3,1]]}
["Šioje darbaknygėje atitinkamose lentelėse įveskite kiekvienos kategorijos numatomas ir faktines išlaidas ir renginio pavadinimą langelyje D1, kad nustatytumėte šio ir kitų darbalapių pavadinimą. Šio darbalapio paantraštė yra langelyje H1. Naudingi patarimai, kaip naudoti šį darbalapį, pateikti šio stulpelio langeliuose. Kitas nurodymas yra langelyje A3.","Renginio biudžetas",null,"Renginio pavadinimas",{"$nulls":3},"IŠLAIDOS"]
[]
["Bendrųjų išlaidų žymė yra langelyje dešinėje, numatomų išlaidų žymė langelyje G3, o faktinės išlaidos langelyje H3.","BENDROSIOS IŠLAIDOS",{"$nulls":4},"Numatomos","Faktinės"]
["Bendrosios numatomas išlaidos langelyje G4 ir bendrosios faktinės išlaidos langelyje H4 apskaičiuojamos automatiškai. Kitas nurodymas yra langelyje A6.",{"$nulls":5},{"$f":"SUM(C11,C19,C25,C32,G11,G19,G24)","v":{"v":882,"d":"882.00 EUR"}},{"$f":"SUM(D11,D19,D25,D32,H11,H19,H24)","v":{"v":302,"d":"302.00 EUR"}}]
[]
["Pradėdami nuo lentelės dešinėje įveskite vietos išlaidas ir užkandžių išlaidas lentelėje nuo F6 langelio. Kitas nurodymas yra A13 langelyje.","Vieta","Numatomos","Faktinis",null,"Užkandžiai","Numatomos","Faktinės"]
[null,"Patalpų ir erdvių mokesčiai",{"v":500,"d":"500.00 EUR"},null,null,"Maistas"]
[null,"Vietos darbuotojai",{"$nulls":3},"Gėrimai",{"v":20,"d":"20.00 EUR"}]
[null,"Įranga",{"$nulls":3},"Patalynė",null,{"v":20,"d":"20.00 EUR"}]
[null,"Stalai ir kėdės",{"$nulls":3},"Darbuotojai ir arbatpinigiai"]
[null,"Suma",{"$f":"SUBTOTAL(109,VietosIšlaidos[Numatomos])","v":{"v":500,"d":"500.00 EUR"}},{"$f":"SUBTOTAL(103,VietosIšlaidos[Faktinis])","v":{"v":0,"d":"0.00 EUR"}},null,"Suma",{"$f":"SUBTOTAL(109,GaivinamųjųGėrimųIšlaidos[Numatomos])","v":{"v":20,"d":"20.00 EUR"}},{"$f":"SUBTOTAL(103,GaivinamųjųGėrimųIšlaidos[Faktinės])","v":{"v":1,"d":"1.00 EUR"}}]
[]
["Pradėdami nuo lentelės dešinėje įveskite dekoracijų išlaidas ir programos išlaidas lentelėje nuo F13 langelio. Kitas nurodymas yra A21 langelyje.","Dekoracijos","Numatomos","Faktinės",null,"Programa","Numatomos","Faktinės"]
[null,"Gėlės",{"v":200,"d":"200.00 EUR"},{"v":300,"d":"300.00 EUR"},null,"Atlikėjai"]
[null,"Žvakės",{"$nulls":3},"Pranešėjai",{"v":30,"d":"30.00 EUR"}]
[null,"Apšvietimas",{"$nulls":3},"Transportas"]
[null,"Balionai",{"$nulls":3},"Viešbučiai"]
[null,"Popierius",{"$nulls":3},"Kita"]
[null,"Suma",{"$f":"SUBTOTAL(109,DekoracijųIšlaidos[Numatomos])","v":{"v":200,"d":"200.00 EUR"}},{"$f":"SUBTOTAL(109,DekoracijųIšlaidos[Faktinės])","v":{"v":300,"d":"300.00 EUR"}},null,"Suma",{"$f":"SUBTOTAL(109,ProgramosIšlaidos[Numatomos])","v":{"v":30,"d":"30.00 EUR"}},{"$f":"SUBTOTAL(103,ProgramosIšlaidos[Faktinės])","v":{"v":0,"d":"0.00 EUR"}}]
[]
["Pradėdami nuo lentelės dešinėje įveskite įrenginio viešinimo išlaidas ir prizų išlaidas lentelėje nuo F21 langelio. Kiti nurodymai yra langelyje A27.","Reklama","Numatomos","Faktinės",null,"Prizai","Numatomos","Faktinės"]
[null,"Grafikos darbas",{"$nulls":3},"Juostelės/lentos/prizai"]
[null,"Kopijavimas/spausdinimas",{"v":20,"d":"20.00 EUR"},null,null,"Dovanos",{"v":100,"d":"100.00 EUR"}]
[null,"Pašto išlaidos",{"$nulls":3},"Suma",{"$f":"SUBTOTAL(109,PrizųIšlaidos[Numatomos])","v":{"v":100,"d":"100.00 EUR"}},{"$f":"SUBTOTAL(103,PrizųIšlaidos[Faktinės])","v":{"v":0,"d":"0.00 EUR"}}]
[null,"Suma",{"$f":"SUBTOTAL(109,ReklamosIšlaidos[Numatomos])","v":{"v":20,"d":"20.00 EUR"}},{"$f":"SUBTOTAL(103,ReklamosIšlaidos[Faktinės])","v":{"v":0,"d":"0.00 EUR"}}]
[]
["Pradėdami nuo langelio dešinėje įveskite įvairias išlaidas.","Įvairūs","Numatomos","Faktinės"]
[null,"Telefonas",null,{"v":13,"d":"13.00 EUR"}]
[null,"Transportas",{"v":12,"d":"12.00 EUR"}]
[null,"Kanceliariniai reikmenys"]
[null,"Fakso paslaugos"]
[null,"Suma",{"$f":"SUBTOTAL(109,ĮvairiosIšlaidos[Numatomos])","v":{"v":12,"d":"12.00 EUR"}},{"$f":"SUBTOTAL(103,ĮvairiosIšlaidos[Faktinės])","v":{"v":1,"d":"1.00 EUR"}}]

{"sheet":"Pajamos","index":2,"n_rows":29,"n_cols":7,"rows_kept":29,"merged":[[0,1,0,2],[2,1,3,1]]}
["Atitinkamose šio darbalapio lentelėse įveskite numatytas ir faktines kiekvienos kategorijos pajamas. Langeliuose dešinėje automatiškai atnaujinamas šio darbalapio pavadinimas. Paantraštė yra G1 langelyje. Naudingi patarimai, kaip naudoti šį darbalapį, pateikti šio stulpelio langeliuose. Kitas nurodymas yra langelyje A3.",{"$f":"Išlaidos!B1","v":"Renginio biudžetas"},null,{"$f":"Išlaidos!D1","v":"Renginio pavadinimas"},null,null,"PAJAMOS"]
[]
["Bendrųjų pajamų žymė yra langelyje dešinėje, numatomų išlaidų žymė langelyje F3, o faktinės pajamos langelyje G3.","BENDROSIOS PAJAMOS",{"$nulls":3},"Numatomos","Faktinės"]
["Visos numatomos pajamos automatiškai apskaičiuojamos langelyje F4, o bendrosios faktinės pajamos langelyje G4.",{"$nulls":4},{"$f":"SUM(ParduotiBilietai[[#Totals],[Numatomos pajamos]],ReklamaRenginioMetu[[#Totals],[Numatomos pajamos]],DalyviaiIrPrekiautojai[[#Totals],[Numatomos pajamos]],PrekiųPardavimas[[#Totals],[Numatomos pajamos]])","v":{"v":1936,"d":"EUR 1,936.00"}},{"$f":"SUM(ParduotiBilietai[[#Totals],[Faktinės pajamos]],ReklamaRenginioMetu[[#Totals],[Faktinės pajamos]],DalyviaiIrPrekiautojai[[#Totals],[Faktinės pajamos]],PrekiųPardavimas[[#Totals],[Faktinės pajamos]])","v":{"v":1831,"d":"EUR 1,831.00"}}]
["Dalyvavimo žyma yra dešinėje esančiame langelyje.","PRIĖMIMAS"]
["Įveskite numatomų ir faktinių dalyvavimų skaičių su bilieto kainomis pradėdami nuo langelio dešinėje. Automatiškai apskaičiuojamos numatomos ir faktinės dalyvavimo pajamos. Kitas nurodymas yra langelyje A11.","Numatomos išl.","Faktinis sk.","Įvesti","Kaina","Numatomos pajamos","Faktinės pajamos"]
[null,300,278,"Suaugusieji @",{"v":5,"d":"EUR 5.00"},{"$f":"B7*E7","v":{"v":1500,"d":"EUR 1,500.00"}},{"$f":"C7*E7","v":{"v":1390,"d":"EUR 1,390.00"}}]
[null,197,195,"Vaikai @",{"v":2,"d":"EUR 2.00"},{"$f":"B8*E8","v":{"v":394,"d":"EUR 394.00"}},{"$f":"C8*E8","v":{"v":390,"d":"EUR 390.00"}}]
[null,42,51,"Kiti @",{"v":1,"d":"EUR 1.00"},{"$f":"B9*E9","v":{"v":42,"d":"EUR 42.00"}},{"$f":"C9*E9","v":{"v":51,"d":"EUR 51.00"}}]
[null,"Bendra suma",{"$nulls":3},{"$f":"SUBTOTAL(109,ParduotiBilietai[Numatomos pajamos])","v":{"v":1936,"d":"EUR 1,936.00"}},{"$f":"SUBTOTAL(109,ParduotiBilietai[Faktinės pajamos])","v":{"v":1831,"d":"EUR 1,831.00"}}]
["Langelyje dešinėje pateikta programos reklaminių skelbimų žyma.","SKELBIMŲ PROGRAMOJE"]
["Nuo langelio dešinėje įveskite numatomą ir faktinį programos reklaminių skelbimų skaičių ir mokesčius už reklamą. Automatiškai apskaičiuojamos numatomos ir faktinės pajamos už reklaminius skelbimus. Kitas nurodymas yra A17 langelyje.","Numatomos išl.","Faktinis sk.","Įvesti","Kaina","Numatomos pajamos","Faktinės pajamos"]
[null,12,null,"Tituliniai lapai @",null,{"$f":"B13*E13","v":{"v":0,"d":"EUR 0.00"}},{"$f":"C13*E13","v":{"v":0,"d":"EUR 0.00"}}]
[null,null,158,"Po pusę puslapio @",null,{"$f":"B14*E14","v":{"v":0,"d":"EUR 0.00"}},{"$f":"C14*E14","v":{"v":0,"d":"EUR 0.00"}}]
[null,4,null,"Po ketvirtį puslapio @",null,{"$f":"B15*E15","v":{"v":0,"d":"EUR 0.00"}},{"$f":"C15*E15","v":{"v":0,"d":"EUR 0.00"}}]
[null,"Bendra suma",{"$nulls":3},{"$f":"SUBTOTAL(109,ReklamaRenginioMetu[Numatomos pajamos])","v":{"v":0,"d":"EUR 0.00"}},{"$f":"SUBTOTAL(109,ReklamaRenginioMetu[Faktinės pajamos])","v":{"v":0,"d":"EUR 0.00"}}]
["Dalyvių ir užsakovų žyma langelyje dešinėje.","DALYVIAI/TIEKĖJAI"]
["Įveskite numatomų ir faktinių dalyvių ir užsakovų skaičių su kainomis pradėdami nuo langelio dešinėje. Automatiškai apskaičiuojamos numatomos ir faktinės pajamos. Kitas nurodymas yra A23 langelyje.","Numatomos išl.","Faktinis sk.","Įvesti","Kaina","Numatomos pajamos","Faktinės pajamos"]
[null,23,null,"Didelės kabinos @",null,{"$f":"B19*E19","v":{"v":0,"d":"EUR 0.00"}},{"$f":"C19*E19","v":{"v":0,"d":"EUR 0.00"}}]
[null,354,null,"Vid. kabinos @",null,{"$f":"B20*E20","v":{"v":0,"d":"EUR 0.00"}},{"$f":"C20*E20","v":{"v":0,"d":"EUR 0.00"}}]
[null,56,null,"Mažos kabinos @",null,{"$f":"B21*E21","v":{"v":0,"d":"EUR 0.00"}},{"$f":"C21*E21","v":{"v":0,"d":"EUR 0.00"}}]
[null,"Bendra suma",{"$nulls":3},{"$f":"SUBTOTAL(109,DalyviaiIrPrekiautojai[Numatomos pajamos])","v":{"v":0,"d":"EUR 0.00"}},{"$f":"SUBTOTAL(109,DalyviaiIrPrekiautojai[Faktinės pajamos])","v":{"v":0,"d":"EUR 0.00"}}]
["Pardavimo elementų žyma yra dešinėje esančiame langelyje.","PARDAVIMO ELEMENTAI"]
["Nuo langelio dešinėje įveskite numatomą ir faktinį parduodamų prekių skaičių. Automatiškai apskaičiuojamos numatomos ir faktinės pajamos.","Numatomos išl.","Faktinis sk.","Įvesti","Kaina","Numatomos pajamos","Faktinės pajamos"]
[{"$nulls":3},"Elem. @",null,{"$f":"B25*E25","v":{"v":0,"d":"EUR 0.00"}},{"$f":"C25*E25","v":{"v":0,"d":"EUR 0.00"}}]
[null,123,null,"Elem. @",null,{"$f":"B26*E26","v":{"v":0,"d":"EUR 0.00"}},{"$f":"C26*E26","v":{"v":0,"d":"EUR 0.00"}}]
[{"$nulls":3},"Elem. @",null,{"$f":"B27*E27","v":{"v":0,"d":"EUR 0.00"}},{"$f":"C27*E27","v":{"v":0,"d":"EUR 0.00"}}]
[null,13,null,"Elem. @",null,{"$f":"B28*E28","v":{"v":0,"d":"EUR 0.00"}},{"$f":"C28*E28","v":{"v":0,"d":"EUR 0.00"}}]
[null,"Bendra suma",{"$nulls":3},{"$f":"SUBTOTAL(109,PrekiųPardavimas[Numatomos pajamos])","v":{"v":0,"d":"EUR 0.00"}},{"$f":"SUBTOTAL(109,PrekiųPardavimas[Faktinės pajamos])","v":{"v":0,"d":"EUR 0.00"}}]

{"sheet":"Pelno ir nuostolių suvestinė","index":3,"n_rows":8,"n_cols":7,"rows_kept":8,"merged":[[0,1,0,2]]}
["Šiame darbalapyje automatiškai atnaujinama pelno ir nuostolio suvestinė ir bendrosios išlaidos ir pajamos. Langeliuose dešinėje automatiškai atnaujinamas šio darbalapio pavadinimas. Paantraštė yra G1 ir G2 langelyje. Naudingi patarimai, kaip naudoti šį darbalapį, pateikti šio stulpelio langeliuose. Kitas nurodymas yra langelyje A3.",{"$f":"Išlaidos!B1","v":"Renginio biudžetas"},null,{"$f":"Išlaidos!D1","v":"Renginio pavadinimas"},null,null,"PELNAS "]
[{"$nulls":6},"Nuostolių suvestinė"]
["Langelyje E3 yra juostinė diagrama, skirta palyginti numatomas pajamas ir išlaidas ir faktines pajamas ir išlaidas.",{"$nulls":3},"Juostinė diagrama, vaizduojanti numatomas pajamas ir išlaidas ir faktinių pajamų ir išlaidų palyginimą šiame langelyje."]
["Suvestinės lentelė, prasidedanti langelyje dešinėje, automatiškai atnaujinama. Kitas nurodymas yra A8 langelyje."," Bendra suma","Numatomos","Faktinės"]
[null,"Bendrosios pajamos",{"$f":"Pajamos!F10","v":{"v":1936,"d":"1,936.00 EUR"}},{"$f":"Pajamos!F4","v":{"v":1936,"d":"1,936.00 EUR"}}]
[null,"Bendrosios išlaidos",{"$f":"Išlaidos!G4","v":{"v":882,"d":"882.00 EUR"}},{"$f":"Išlaidos!H4","v":{"v":302,"d":"302.00 EUR"}}]
[]
["Bendrasis pelnas arba nuostolis automatiškai apskaičiuojamas C8 langelyje, o bendrasis pelnas ar faktinis nuostolis D8 langelį.","Bendrasis pelnas\n(arba nuostoliai)",{"$f":"C5-C6","v":{"v":1054,"d":"1,054.00 EUR"}},{"$f":"D5-D6","v":{"v":1634,"d":"1,634.00 EUR"}}]